bitfinex/quotes_ETHUSD_20240811
["timestamp","ask_amount","ask_price","bid_price","bid_amount"]
[1723384161247,0.1285297,2644.1,2643.8,2.64763]
[1723384161465,0.1285297,2644.1,2644.0,0.03633357]
[1723384161625,0.1285297,2644.1,2643.9,2.68395549]
[1723384161811,0.1285297,2644.1,2644.0,0.03633357]
[1723384162344,0.1285297,2644.1,2644.0,2.68383357]
[1723384163468,0.1285297,2644.1,2644.0,0.03633357]
[1723384164367,0.1285297,2644.1,2644.0,3.03869723]
[1723384165189,0.1285297,2644.1,2644.0,5.68619723]
[1723384165350,0.1285297,2644.1,2644.0,3.03869723]
[1723384165548,0.1285297,2644.1,2644.0,0.39119723]
[1723384165800,0.1285297,2644.1,2644.0,0.03633357]
[1723384166485,0.1285297,2644.1,2643.6,3.0]
[1723384166697,0.1285297,2644.1,2643.7,0.03618714]
[1723384166874,0.1285297,2644.1,2643.6,2.64789]
[1723384167214,0.1285297,2644.1,2643.8,0.03612521]
[1723384167376,0.1285297,2644.1,2643.7,0.529583]
[1723384167377,0.1285297,2644.1,2643.7,3.21614494]
[1723384167584,0.1285297,2644.1,2643.9,0.03863924]
[1723384167785,0.1285297,2644.1,2643.8,0.03612521]
[1723384167970,0.1285297,2644.1,2644.0,0.0385729]
[1723384168503,0.1285297,2644.1,2643.8,2.64761]
[1723384168681,0.1285297,2644.1,2644.0,0.03600137]
[1723384168997,0.1285297,2644.1,2644.0,2.6475]
[1723384169166,0.1285297,2644.1,2644.0,2.68350137]
[1723384169370,0.1285297,2644.1,2644.0,3.21661051]
[1723384170094,0.1285297,2644.1,2644.0,0.56911051]
[1723384170290,0.1285297,2644.1,2644.0,0.03600137]
[1723384170490,0.1285297,2644.1,2644.0,2.68350137]
[1723384171133,0.1285297,2644.1,2644.0,5.33100137]
[1723384171430,0.1285297,2644.1,2644.0,0.03600137]
[1723384171835,0.1285297,2644.1,2644.0,5.33100137]
[1723384172005,0.1285297,2644.1,2644.0,5.82810014]
[1723384172340,0.1285297,2644.1,2644.0,5.86410151]
[1723384172635,0.1285297,2644.1,2644.0,3.21660151]
[1723384173136,0.1285297,2644.1,2644.0,0.03600137]
[1723384173355,0.1285297,2644.1,2644.0,2.6475]
[1723384173638,0.1285297,2644.1,2644.0,5.33100137]
[1723384174099,0.1285297,2644.1,2644.0,2.68350137]
[1723384174605,0.1285297,2644.1,2644.0,0.03600137]
[1723384175930,2.4604297,2644.1,2643.2,2.64825]
[1723384176131,2.4604297,2644.1,2643.3,0.264825]
[1723384176132,2.64757,2644.0,2643.3,0.264825]
[1723384176438,5.1078297,2644.1,2643.3,0.264825]
[1723384176726,2.64759,2644.0,2643.3,0.264825]
[1723384176897,0.1285297,2644.1,2643.4,2.64805]
[1723384177101,0.1285297,2644.1,2643.8,2.64763]
[1723384177409,0.1285297,2644.1,2644.0,2.6475]
[1723384178330,0.1285297,2644.1,2644.0,5.295]
[1723384179622,0.1285297,2644.1,2644.0,2.6475]
[1723384179937,0.1285297,2644.1,2643.8,2.64764]
[1723384180138,0.1285297,2644.1,2643.8,3.177178]
[1723384180312,0.1285297,2644.1,2643.8,2.64763]
[1723384180697,0.1285297,2644.1,2643.6,2.64783]
[1723384180898,0.1285297,2644.1,2643.5,2.9392875]
[1723384181345,0.1285297,2644.1,2643.6,2.64788]
[1723384181547,0.1285297,2644.1,2643.6,5.85444075]
[1723384181857,0.1285297,2644.1,2643.7,2.64773]
[1723384182053,0.1285297,2644.1,2643.6,3.20656075]
[1723384182588,0.1285297,2644.1,2643.6,3.20655075]
[1723384182736,0.1285297,2644.1,2643.7,2.64774]
[1723384183137,0.1285297,2644.1,2643.4,2.6481]
[1723384183462,0.1285297,2644.1,2643.6,2.6478]
[1723384184817,0.1285297,2644.1,2643.7,2.64774]
[1723384185558,0.1285297,2644.1,2643.5,2.64791]
[1723384185764,2.64756,2644.0,2643.4,2.64804]
[1723384185924,2.7759397,2644.1,2643.5,2.64798]
[1723384186349,5.4234097,2644.1,2643.5,2.64798]
[1723384186564,5.4234097,2644.1,2643.4,2.64807]
[1723384186861,2.7759397,2644.1,2643.4,3.177688]
[1723384187035,2.7759397,2644.1,2643.5,2.64798]
[1723384187626,0.1285297,2644.1,2644.0,5.295]
[1723384187920,0.1285297,2644.1,2644.0,5.8245]
[1723384188319,0.1285297,2644.1,2644.0,8.472]
[1723384188558,0.1285297,2644.1,2644.0,5.8245]
[1723384188759,0.1285297,2644.1,2644.0,3.177]
[1723384189357,0.1285297,2644.1,2644.0,5.8245]
[1723384189848,0.1285297,2644.1,2644.0,8.472]
[1723384190974,0.1285297,2644.1,2644.0,5.8245]
[1723384191161,0.1285297,2644.1,2644.0,0.5295]
[1723384191360,0.1285297,2644.1,2644.0,2.6475]
[1723384192285,0.1285297,2644.1,2644.0,5.295]
[1723384193291,0.1285297,2644.1,2644.0,5.37062635]
[1723384193495,0.1285297,2644.1,2644.0,5.295]
[1723384193989,0.1285297,2644.1,2644.0,10.2764]
[1723384194160,0.1285297,2644.1,2644.0,14.30404]
[1723384194368,0.1285297,2644.1,2644.0,11.65654]
[1723384195098,0.1285297,2644.1,2644.0,9.32264]
[1723384195390,0.1285297,2644.1,2644.0,11.65654]
[1723384196266,0.1285297,2644.1,2644.0,9.32264]
[1723384198503,0.1285297,2644.1,2644.0,3.67514]
[1723384199001,2.8078297,2644.1,2644.0,1.02764]
[1723384199197,2.8078297,2644.1,2643.7,2.64774]
[1723384199379,2.8078297,2644.1,2643.5,2.64799]
[1723384199380,5.4552497,2644.1,2643.5,2.64799]
[1723384199564,2.8078297,2644.1,2643.6,2.64784]
[1723384199968,2.8078297,2644.1,2643.5,0.3177688]
[1723384200368,5.4552297,2644.1,2643.5,2.9657688]
[1723384200604,2.8078297,2644.1,2643.8,2.64765]
[1723384200776,2.8078297,2644.1,2643.8,0.264765]
[1723384201110,2.8078297,2644.1,2643.8,2.64765]
[1723384201267,2.8078297,2644.1,2643.7,2.64773]
[1723384201475,2.8078297,2644.1,2643.1,0.3797]
[1723384201677,2.8078297,2644.1,2643.6,2.64785]
[1723384201883,2.8078297,2644.1,2643.6,3.177434]
[1723384202203,2.8078297,2644.1,2643.2,2.64827]
[1723384202393,2.8078297,2644.1,2644.0,2.6475]
[1723384202578,2.8078297,2644.1,2644.0,5.295]
[1723384203006,2.8078297,2644.1,2644.0,2.6475]
[1723384203368,2.8078297,2644.1,2643.8,2.64762]
[1723384203886,2.8078297,2644.1,2643.9,2.64754]
[1723384204087,2.8078297,2644.1,2643.8,2.64761]
[1723384204427,2.4426,2644.0,2643.8,2.64762]
[1723384204589,2.4426,2644.0,2643.6,2.64783]
[1723384204590,2.4426,2644.0,2643.9,2.6476]
[1723384204779,2.4426,2644.0,2643.6,5.29567]
[1723384204984,2.4426,2644.0,2643.6,5.825237]
[1723384205181,2.4426,2644.0,2643.6,3.177387]
[1723384205391,2.4426,2644.0,2643.7,2.64774]
[1723384205691,2.4426,2644.0,2643.6,3.177387]
[1723384205692,2.4426,2644.0,2643.6,2.64782]
[1723384206203,2.4426,2644.0,2643.4,2.648]
[1723384206404,2.4426,2644.0,2643.6,2.64788]
[1723384206716,2.4426,2644.0,2643.3,3.0]
[1723384206717,2.64765,2643.9,2643.3,5.64815]
[1723384207017,2.4426,2644.0,2643.5,2.6479]
[1723384207221,2.4426,2644.0,2643.6,2.64789]
[1723384207424,2.4426,2644.0,2643.8,2.64768]
[1723384207735,2.4426,2644.0,2643.6,2.6478]
[1723384208227,2.4426,2644.0,2643.4,2.64804]
[1723384208392,2.4426,2644.0,2643.5,2.64796]
[1723384208589,5.09015,2644.0,2643.4,2.64804]
[1723384208789,2.4426,2644.0,2643.5,2.64795]
[1723384209088,2.4426,2644.0,2643.6,2.64789]
[1723384209314,2.4426,2644.0,2643.6,2.64784]
[1723384209630,2.4426,2644.0,2643.6,2.64783]
[1723384209836,2.4426,2644.0,2643.7,2.64774]
[1723384210195,2.8078297,2644.1,2643.7,2.64774]
[1723384210398,2.8078297,2644.1,2643.6,0.3477457]
[1723384210399,2.8078297,2644.1,2644.0,2.6475]
[1723384211122,2.8078297,2644.1,2644.0,5.295]
[1723384213341,2.8078297,2644.1,2644.0,2.6475]
[1723384213844,2.8078297,2644.1,2644.0,5.295]
[1723384214838,2.8078297,2644.1,2643.8,2.64764]
[1723384214997,2.8078297,2644.1,2643.9,2.6476]
[1723384215435,2.8078297,2644.1,2644.0,7.9425]
[1723384215941,2.8078297,2644.1,2644.0,5.295]
[1723384217140,2.8078297,2644.1,2644.0,2.6475]
[1723384217301,2.8078297,2644.1,2644.0,5.295]
[1723384217703,2.8078297,2644.1,2644.0,2.6475]
[1723384218116,2.8078297,2644.1,2643.5,2.64793]
[1723384218341,2.8078297,2644.1,2643.8,2.64767]
[1723384218646,2.8078297,2644.1,2644.0,2.6475]
[1723384218826,2.8078297,2644.1,2644.0,5.295]
[1723384218999,2.8078297,2644.1,2643.4,0.829627]
[1723384219353,2.8078297,2644.1,2644.0,2.6475]
[1723384219516,2.8078297,2644.1,2643.7,2.64771]
[1723384219719,2.8078297,2644.1,2643.8,5.29531]
[1723384219938,2.8078297,2644.1,2643.8,2.64763]
[1723384220519,2.8078297,2644.1,2643.9,2.64751]
[1723384220724,2.8078297,2644.1,2643.6,2.64789]
[1723384220923,2.8078297,2644.1,2643.4,3.0]
[1723384220924,2.8078297,2644.1,2643.4,5.64805]
[1723384221119,2.8078297,2644.1,2643.9,2.64755]
[1723384221322,2.8078297,2644.1,2643.9,2.64754]
[1723384221681,2.4403,2644.0,2643.8,2.64768]
[1723384221951,2.8078297,2644.1,2643.9,2.6476]
[1723384222518,2.8078297,2644.1,2644.0,2.6475]
[1723384222745,2.8078297,2644.1,2644.0,5.295]
[1723384223366,2.8078297,2644.1,2644.0,2.6475]
[1723384223759,2.8078297,2644.1,2644.0,8.194612]
[1723384223965,2.8078297,2644.1,2644.0,10.842112]
[1723384224332,2.8078297,2644.1,2644.0,12.80563073]
[1723384225136,2.8078297,2644.1,2644.0,10.842112]
[1723384225338,2.8078297,2644.1,2644.0,5.824512]
[1723384228289,2.8078297,2644.1,2644.0,8.472012]
[1723384229417,2.8078297,2644.1,2644.0,10.4358863]
[1723384229574,7.3,2645.4,2644.3,2.64714]
[1723384229775,2.2964,2645.7,2644.7,2.6468]
[1723384229983,2.2964,2645.7,2645.4,5.29209]
[1723384230274,2.2964,2645.9,2645.5,2.64594]
[1723384230512,2.52604,2645.9,2645.3,2.64611]
[1723384230696,2.64575,2645.8,2645.2,2.64628]
[1723384231014,2.64575,2645.8,2644.5,2.35664916]
[1723384231015,2.64591,2645.6,2644.8,2.64664]
[1723384231178,2.813579,2645.7,2645.0,2.64646]
[1723384231375,2.64643,2645.1,2644.3,4.96315082]
[1723384231575,0.517179,2645.7,2644.2,2.64723]
[1723384231576,2.64671,2644.8,2644.2,2.64723]
[1723384231818,0.264671,2644.7,2644.3,2.64713]
[1723384232118,0.264671,2644.7,2643.8,2.64766]
[1723384232119,2.2964,2644.9,2644.7,2.64674]
[1723384232327,2.2964,2644.9,2644.5,2.64694]
[1723384232328,2.2964,2644.9,2644.8,2.6467]
[1723384232469,2.2964,2644.9,2644.5,2.64694]
[1723384232470,2.2964,2644.9,2644.6,2.64683]
[1723384232677,2.2964,2644.9,2644.8,0.07882301]
[1723384232917,2.2964,2644.9,2644.7,0.07874632]
[1723384233083,2.2964,2644.9,2644.8,0.07868264]
[1723384233283,2.52604,2644.9,2644.8,0.07868264]
[1723384233503,2.52604,2644.9,2644.4,2.64709]
[1723384233676,2.52604,2644.9,2644.3,2.64715]
[1723384233677,2.52604,2644.9,2644.8,0.07868264]
[1723384234019,2.52604,2644.9,2644.8,0.07870938]
[1723384234224,2.52604,2644.9,2644.4,2.6471]
[1723384234421,2.52604,2644.9,2644.8,0.07870938]
[1723384234632,2.52604,2644.9,2644.3,2.64712]
[1723384234782,2.52604,2644.9,2644.8,0.07870938]
[1723384234985,2.52604,2644.9,2643.9,2.64753]
[1723384234986,2.64671,2644.8,2643.9,2.64753]
[1723384235181,2.2964,2644.7,2644.2,2.64728]
[1723384236028,2.2964,2644.7,2644.2,5.29456]
[1723384236200,2.2964,2644.7,2644.2,2.64725]
[1723384236517,2.8389244,2644.7,2644.0,2.64744]
[1723384236692,2.2964,2644.2,2643.4,1.96502346]
[1723384237095,2.2964,2644.2,2643.3,2.64816]
[1723384237096,2.2964,2644.5,2643.6,2.64786]
[1723384237312,2.2964,2645.0,2644.4,2.6471]
[1723384237937,2.2964,2645.0,2644.6,2.6469]
[1723384238348,2.2964,2645.4,2644.8,2.64662]
[1723384238645,5.6725,2645.4,2644.8,2.64662]
[1723384238955,3.0264,2645.4,2644.8,2.64662]
[1723384239153,3.0264,2645.4,2645.0,2.64649]
[1723384239462,2.2964,2645.4,2645.0,5.29298]
[1723384239757,2.2964,2645.8,2645.2,2.64628]
[1723384239905,2.2964,2645.8,2645.4,2.64602]
[1723384240107,2.2964,2646.1,2645.4,2.72161262]
[1723384240407,2.2964,2646.1,2644.7,8.29008]
[1723384240408,2.2964,2646.1,2645.7,2.64579]
[1723384240604,2.2964,2646.1,2645.4,2.64603]
[1723384240863,2.2964,2646.1,2645.2,2.2636]
[1723384240864,2.64578,2645.8,2645.2,2.64626]
[1723384241011,2.2964,2645.7,2645.2,2.64626]
[1723384241212,2.2964,2645.7,2645.0,2.64643]
[1723384241423,2.2964,2646.0,2645.6,2.64581]
[1723384241622,0.005,2646.2,2645.9,2.64554]
[1723384241855,0.005,2646.2,2645.3,2.2636]
[1723384241856,0.005,2646.2,2646.0,2.64545]
[1723384242026,0.23514,2646.2,2646.0,2.64545]
[1723384242225,0.005,2646.2,2646.1,7.5544]
[1723384242746,0.005,2646.2,2646.1,2.6454]
[1723384243741,0.005,2646.2,2646.1,5.2908]
[1723384244058,0.005,2646.2,2645.7,2.2636]
[1723384244059,0.005,2646.2,2645.7,2.64574]
[1723384244227,2.64541,2646.1,2645.5,2.64596]
[1723384244556,2.64541,2646.1,2644.7,0.3797]
[1723384244557,2.2964,2646.1,2644.6,5.8646]
[1723384244853,2.65039,2646.2,2644.8,2.64664]
[1723384244854,2.64581,2645.7,2644.8,2.64664]
[1723384245053,3.175069,2645.6,2645.0,2.64644]
[1723384245307,2.64612,2645.4,2644.8,2.64664]
[1723384245462,2.64636,2645.2,2644.5,2.64698]
[1723384245617,2.64651,2645.0,2644.4,2.64704]
[1723384246061,2.64636,2645.2,2644.5,2.647]
[1723384246241,0.494276,2645.1,2644.5,2.647]
[1723384246441,3.140676,2645.1,2644.5,2.647]
[1723384246624,2.6466,2644.9,2644.3,2.64711]
[1723384246829,2.6464,2645.1,2644.4,2.64702]
[1723384247241,2.6464,2645.1,2644.4,2.6471]
[1723384247430,3.405304,2645.1,2644.3,2.64711]
[1723384247633,2.6466,2644.9,2644.3,2.64711]
[1723384247845,3.405304,2645.1,2644.3,2.64711]
[1723384248040,3.405304,2645.1,2644.4,2.64707]
[1723384248551,2.2964,2645.3,2644.1,5.29467]
[1723384248552,2.6467,2644.8,2644.1,5.29467]
[1723384248766,2.64665,2644.9,2644.2,2.64728]
[1723384249333,2.6467,2644.8,2644.2,2.64728]
[1723384249863,2.2964,2645.3,2644.3,2.71454322]
[1723384249864,2.64666,2644.9,2644.3,2.71454322]
[1723384250071,0.264666,2644.8,2644.3,0.06735322]
[1723384250282,2.2514,2644.4,2644.3,0.06735322]
[1723384250438,2.2514,2644.4,2644.0,2.64744]
[1723384250639,2.2514,2644.4,2644.3,0.06735322]
[1723384250974,2.8723,2644.4,2643.7,2.64775]
[1723384251460,2.8723,2644.4,2643.7,2.64774]
[1723384251657,2.8723,2644.4,2643.8,0.06767177]
[1723384251975,2.6472,2644.3,2643.6,2.64783]
[1723384252170,2.8723,2644.4,2643.6,3.177417]
[1723384252171,5.51947,2644.4,2643.6,3.177417]
[1723384252374,0.22514,2644.4,2643.6,2.64785]
[1723384252536,6.601,2645.1,2643.4,0.07564707]
[1723384252537,2.2514,2645.4,2644.4,2.4628]
[1723384252736,4.8975,2645.4,2644.8,2.64664]
[1723384252945,4.89713,2645.8,2644.6,2.64689]
[1723384253170,5.651396,2645.8,2645.0,2.64642]
[1723384253487,2.6458,2645.7,2645.0,2.64642]
[1723384253790,2.6458,2645.7,2645.1,0.06684379]
[1723384253970,5.651396,2645.8,2645.1,2.71323379]
[1723384254578,2.64591,2645.6,2645.1,0.06684379]
[1723384254963,0.5651396,2645.7,2645.1,0.06684379]
[1723384255169,5.651396,2645.8,2645.1,0.06684379]
[1723384255170,2.2514,2645.8,2645.1,0.06684379]
[1723384255371,2.65032,2646.2,2645.1,0.06684379]
[1723384255554,0.005,2646.2,2645.4,2.64607]
[1723384255759,2.6456,2645.9,2645.2,2.64623]
[1723384255959,2.64582,2645.7,2645.2,0.06661977]
[1723384256356,2.64563,2645.9,2645.2,2.64621]
[1723384256602,2.6458,2645.7,2645.3,0.06656279]
[1723384257090,2.6458,2645.7,2645.1,2.64639]
[1723384257385,5.29167,2645.7,2645.0,2.64644]
[1723384257569,5.29167,2645.7,2645.0,5.29289]
[1723384257570,2.6458,2645.7,2645.0,5.29289]
[1723384257773,2.6458,2645.7,2645.1,0.06660326]
[1723384257999,2.64592,2645.6,2645.1,0.06660326]
[1723384258384,2.64601,2645.5,2645.1,0.06660326]
[1723384258801,2.64615,2645.4,2644.8,2.6466]
[1723384258999,2.64601,2645.5,2644.8,2.6466]
[1723384259213,2.64601,2645.5,2644.9,0.06673393]
[1723384259370,2.64601,2645.5,2644.9,2.71333393]
[1723384259572,2.64601,2645.5,2644.9,0.06673393]
[1723384260197,2.64627,2645.3,2644.9,0.06673393]
[1723384260396,2.64615,2645.4,2644.9,0.06673393]
[1723384260603,0.59198626,2648.0,2645.4,2.64603]
[1723384260604,2.65035,2646.2,2645.4,2.64603]
[1723384260773,2.2564,2646.2,2645.5,0.264603]
[1723384261108,2.2564,2646.2,2645.7,2.64578]
[1723384261309,2.2564,2646.2,2645.7,2.64574]
[1723384261510,2.2564,2646.2,2645.8,0.0661611]
[1723384261511,0.005,2646.2,2645.8,0.0661611]
[1723384261921,2.65037,2646.2,2645.8,0.0661611]
[1723384262208,3.179903,2646.2,2645.4,2.64602]
[1723384262509,7.54255,2646.0,2645.2,2.64622]
[1723384262705,4.89696,2646.0,2645.4,2.6461]
[1723384262908,0.005,2646.2,2645.6,2.64581]
[1723384262909,2.65036,2646.2,2645.6,2.64581]
[1723384263223,2.65031,2646.2,2645.6,5.29166]
[1723384263427,0.55,2646.1,2645.7,2.64577]
[1723384263712,0.005,2646.2,2645.5,0.26461]
[1723384263886,0.005,2646.2,2645.6,0.07558967]
[1723384264118,0.005,2646.2,2645.3,2.4628]
[1723384264119,0.005,2646.2,2646.1,5.2908]
[1723384264291,0.005,2646.2,2646.1,7.9362]
[1723384264477,0.005,2646.2,2646.1,8.9761]
[1723384264680,0.005,2646.2,2646.1,6.39667025]
[1723384265079,0.005,2646.2,2646.1,9.04207025]
[1723384265284,0.10551719,2646.9,2646.8,2.6447]
[1723384265692,0.10551719,2646.9,2646.8,2.71022509]
[1723384266020,0.10551719,2646.9,2646.8,5.8904276]
[1723384266574,0.10551719,2646.9,2646.8,3.2457276]
[1723384266820,0.10551719,2646.9,2646.8,2.71022509]
[1723384267117,0.10551719,2646.9,2646.8,0.06552509]
[1723384267437,0.10551719,2646.9,2646.2,2.4568]
[1723384267719,0.10551719,2646.9,2646.5,2.64495]
[1723384268108,0.10551719,2646.9,2646.6,0.06477089]
[1723384268744,0.10551719,2646.9,2646.7,2.6448]
[1723384269034,0.10551719,2646.9,2646.8,0.06464373]
[1723384269906,0.10551719,2646.9,2646.7,2.64477]
[1723384270117,0.10551719,2646.9,2646.8,2.70934373]
[1723384270444,0.10551719,2646.9,2646.8,5.42960366]
[1723384270732,0.10551719,2646.9,2646.8,5.8970041]
[1723384272216,0.10551719,2646.9,2646.8,8.5417041]
[1723384272418,0.10551719,2646.9,2646.8,10.9985041]
[1723384273329,0.10551719,2646.9,2646.8,13.6432041]
[1723384273535,0.10551719,2646.9,2646.8,13.9985041]
[1723384273748,0.10551719,2646.9,2646.8,16.6432041]
[1723384274360,0.10551719,2646.9,2646.8,17.0229041]
[1723384274562,0.10551719,2646.9,2646.8,16.6432041]
[1723384274717,0.10551719,2646.9,2646.8,13.9985041]
[1723384277190,0.10551719,2646.9,2646.8,17.0229041]
[1723384277335,0.10551719,2646.9,2646.8,14.3782041]
[1723384277542,0.10551719,2646.9,2646.8,17.0229041]
[1723384277895,0.10551719,2646.9,2646.8,13.9985041]
[1723384278242,0.10551719,2646.9,2646.8,16.6432041]
[1723384278433,0.10551719,2646.9,2646.8,14.3782041]
[1723384278633,0.10551719,2646.9,2646.8,16.6432041]
[1723384279250,0.10551719,2646.9,2646.8,13.9985041]
[1723384279564,0.01,2647.6,2647.5,5.288]
[1723384279766,0.01,2647.6,2647.5,3.1728]
[1723384279978,0.59164659,2649.1,2647.6,2.4568]
[1723384280134,2.64206,2649.5,2648.8,2.64264]
[1723384280332,2.64206,2649.5,2648.7,2.6428]
[1723384280333,2.64222,2649.3,2648.7,2.6428]
[1723384280555,5.28412,2649.5,2648.9,0.06256587]
[1723384280756,5.28412,2649.5,2648.8,2.70527935]
[1723384280757,2.64206,2649.5,2648.8,2.70527935]
[1723384280977,2.64221,2649.3,2649.0,0.06250239]
[1723384281171,2.3261,2649.6,2648.9,0.06256587]
[1723384281375,2.3261,2649.6,2649.1,0.06243892]
[1723384281563,2.3261,2649.6,2648.5,2.71848407]
[1723384281564,2.7706397,2649.4,2649.0,0.06250239]
[1723384281765,0.54126497,2649.3,2649.2,0.06237546]
[1723384281948,7.6107,2649.2,2649.1,0.06243892]
[1723384282144,2.64251,2649.0,2648.4,2.64304]
[1723384282335,2.64245,2649.1,2648.3,5.64312]
[1723384282650,2.83579297,2649.2,2648.6,2.64285]
[1723384282839,5.47815297,2649.2,2648.6,2.64285]
[1723384283072,4.96846,2649.2,2648.6,2.64284]
[1723384283275,4.96846,2649.2,2648.9,2.64254]
[1723384283276,2.3261,2649.2,2648.9,2.64254]
[1723384283587,2.3261,2649.2,2648.7,5.28548]
[1723384283782,2.3261,2649.2,2648.7,2.64274]
[1723384283984,2.8751,2649.1,2648.4,2.64301]
[1723384284188,2.3261,2649.2,2648.8,2.64268]
[1723384284386,2.64228,2649.3,2648.5,2.643]
[1723384284587,2.3261,2649.2,2648.7,2.6428]
[1723384284907,4.96841,2649.2,2648.5,2.64291]
[1723384285097,5.74231497,2649.2,2648.6,2.64285]
[1723384285472,8.38468497,2649.2,2648.6,2.64285]
[1723384285669,8.38468497,2649.2,2648.3,2.64314]
[1723384285670,3.10000497,2649.2,2648.3,2.64314]
[1723384285903,2.64259,2649.0,2648.4,2.64309]
[1723384286314,2.64262,2648.9,2648.3,2.64314]
[1723384286482,2.64262,2648.9,2648.2,2.64323]
[1723384286903,2.64262,2648.9,2648.3,2.64315]
[1723384287097,2.3261,2649.2,2648.3,2.64314]
[1723384287098,2.64246,2649.1,2648.3,2.64314]
[1723384287303,2.64257,2649.0,2648.3,2.64314]
[1723384287500,2.64262,2648.9,2648.3,2.64314]
[1723384288096,0.496856,2649.0,2648.3,5.28628]
[1723384288292,2.3261,2649.2,2648.2,0.61645683]
[1723384288514,2.3261,2649.2,2648.8,2.6427]
[1723384289316,2.3261,2649.2,2648.8,2.64263]
[1723384289515,2.3261,2649.2,2648.4,2.64306]
[1723384289719,2.3261,2649.2,2648.6,2.64284]
[1723384289930,2.83577997,2649.2,2648.6,2.64284]
[1723384290308,5.47813997,2649.2,2648.6,2.64284]
[1723384290632,2.83577997,2649.2,2648.4,2.64304]
[1723384290827,2.83577997,2649.2,2648.4,0.32594968]
[1723384290994,4.96846,2649.2,2648.5,5.28592]
[1723384291195,4.96846,2649.2,2648.4,0.32594968]
[1723384291196,2.3261,2649.2,2648.4,2.96895968]
[1723384291395,2.3261,2649.2,2648.7,2.64274]
[1723384291617,5.74237297,2649.2,2648.6,2.64284]
[1723384291802,5.74237297,2649.2,2648.6,2.64283]
[1723384291803,2.3261,2649.2,2648.6,2.64283]
[1723384292103,2.64265,2648.9,2648.3,2.64315]
[1723384292310,2.906915,2648.9,2648.3,2.64315]
[1723384292510,0.264265,2648.9,2648.3,2.64315]
[1723384292715,0.264265,2648.9,2647.9,2.64357]
[1723384292908,0.264265,2648.9,2648.1,3.0]
[1723384293107,0.264265,2648.9,2648.3,2.64319]
[1723384293431,2.906875,2648.9,2648.3,2.64314]
[1723384293860,7.21124611,2655.6,2647.7,2.64374]
[1723384293861,2.7770875,2648.8,2647.7,2.64374]
[1723384294002,2.4864,2648.5,2647.2,2.64424]
[1723384294195,0.55,2648.7,2647.2,2.64424]
[1723384294196,2.4864,2647.9,2647.2,2.64424]
[1723384294437,2.4864,2647.9,2647.4,2.64408]
[1723384294638,2.4864,2647.9,2647.5,0.06097508]
[1723384294639,2.64376,2647.8,2647.5,0.06097508]
[1723384294804,2.6439,2647.6,2647.0,2.64441]
[1723384295005,2.6439,2647.6,2647.1,0.06122929]
[1723384295413,2.4864,2647.3,2646.8,2.64463]
[1723384295612,5.1306,2647.3,2646.9,0.06135642]
[1723384295813,5.1306,2647.3,2646.5,2.64498]
[1723384295814,2.64439,2647.2,2646.5,2.64498]
[1723384296033,2.64445,2647.1,2646.6,0.06154716]
[1723384296234,2.4864,2647.3,2646.6,2.70642716]
[1723384296443,2.4864,2648.3,2647.2,2.6443]
[1723384296736,3.207656,2648.2,2647.5,2.64393]
[1723384297151,2.64351,2648.0,2647.6,0.06091153]
[1723384297503,2.64351,2648.0,2647.3,2.64411]
[1723384297703,2.64351,2648.0,2647.7,0.060848]
[1723384297704,2.4864,2648.0,2647.7,0.060848]
[1723384298063,2.4864,2648.0,2646.6,6.0434]
[1723384298064,2.64395,2647.6,2646.9,5.28815941]
[1723384298205,2.4864,2647.5,2646.9,2.64361941]
[1723384298557,2.4864,2647.5,2647.0,0.26436194]
[1723384299043,2.64415,2647.4,2646.8,2.64467]
[1723384299604,2.4864,2647.5,2646.5,2.64493]
[1723384299807,2.4864,2647.0,2646.5,2.64493]
[1723384300021,2.4864,2647.0,2646.4,2.64509]
[1723384300344,2.64461,2646.9,2646.4,0.529022]
[1723384300748,2.64471,2646.8,2646.1,2.64533]
[1723384301272,2.6448,2646.7,2646.1,2.64533]
[1723384301408,2.64461,2646.9,2646.2,2.64529]
[1723384301608,2.64461,2646.9,2646.3,2.64519]
[1723384301809,2.64481,2646.7,2646.1,5.29065]
[1723384302114,2.64481,2646.7,2646.2,2.64529]
[1723384302313,2.64481,2646.7,2646.1,2.64531]
[1723384302615,2.64481,2646.7,2645.7,2.4504]
[1723384302616,5.13156,2646.4,2645.7,5.2915]
[1723384302815,5.13156,2646.4,2645.8,2.64564]
[1723384303014,2.4864,2646.4,2645.8,2.64564]
[1723384303245,2.4864,2646.4,2645.9,2.64558]
[1723384303415,2.4864,2646.4,2645.9,5.2911]
[1723384303748,2.4864,2646.4,2645.9,2.64552]
[1723384304420,5.1315,2646.4,2645.7,5.29146]
[1723384304608,5.1315,2646.4,2645.8,2.64569]
[1723384304812,2.64537,2646.2,2645.5,2.64593]
[1723384305051,2.4864,2646.4,2645.9,2.64554]
[1723384305228,2.4864,2646.4,2645.9,2.910094]
[1723384305759,5.13157,2646.4,2645.7,2.64574]
[1723384305927,2.6453,2646.2,2645.7,2.64574]
[1723384306255,5.13157,2646.4,2645.8,2.64568]
[1723384306454,5.13157,2646.4,2645.7,2.64574]
[1723384306757,5.13157,2646.4,2645.5,2.64592]
[1723384306758,2.6453,2646.2,2645.5,2.64592]
[1723384306942,2.64547,2646.1,2645.5,2.64592]
[1723384307260,2.6453,2646.2,2645.6,2.6459]
[1723384307556,2.64545,2646.1,2645.5,3.475126]
[1723384307755,2.64551,2646.0,2645.5,0.829206]
[1723384308356,2.64565,2645.9,2645.5,0.829206]
[1723384308558,2.64565,2645.9,2645.3,2.64614]
[1723384308854,2.64565,2645.9,2645.3,5.29228]
[1723384309013,2.64565,2645.9,2645.3,2.64614]
[1723384309221,2.6457,2645.8,2645.3,2.64614]
[1723384309427,4.905,2645.8,2645.3,2.64614]
[1723384309733,2.2593,2645.8,2645.4,2.70339534]
[1723384310779,2.2593,2645.8,2645.4,0.05736534]
[1723384311061,2.2593,2645.8,2645.4,2.70345534]